fUSD/lending_fUSD_20240720
["ID","MTS","AMOUNT","RATE_DAILY","PERIOD"]
[332713677,1721473875994,-500.0,0.0003315,14]
[332713678,1721473876006,-1422.16,0.0003315,14]
[332713679,1721473876016,-214.47998084,0.0003315,14]
[332713680,1721473876025,-500.0,0.0003315,14]
[332713681,1721473876035,-1143.68,0.0003315,14]
[332713682,1721473876045,-1114.48,0.0003315,14]
[332713683,1721473876056,-1073.0,0.0003315,14]
[332713684,1721473876066,-1114.51,0.0003315,14]
[332713685,1721473876076,-1042.66,0.0003315,14]
[332713686,1721473876086,-1019.09,0.0003315,14]
[332713687,1721473876096,-1124.4,0.0003315,14]
[332713688,1721473876108,-500.0,0.0003315,14]
[332713689,1721473876119,-500.0,0.0003315,14]
[332713690,1721473876129,-500.0,0.0003315,14]
[332713691,1721473876140,-500.0,0.0003315,14]
[332713692,1721473876151,-500.0,0.0003315,14]
[332713693,1721473876171,-500.0,0.0003315,14]
[332713694,1721473876198,-500.0,0.0003315,14]
[332713695,1721473876229,-1109.04,0.0003315,14]
[332713696,1721473876259,-500.0,0.0003315,14]
[332713697,1721473876290,-500.0,0.0003315,14]
[332713698,1721473876315,-500.0,0.0003315,14]
[332713699,1721473876337,-577.57932413,0.0003315,14]
[332713700,1721473876347,-500.0,0.0003315,14]
[332713701,1721473876357,-1114.06,0.0003315,14]
[332713702,1721473876367,-500.0,0.0003315,14]
[332713703,1721473876377,-500.0,0.0003315,14]
[332713704,1721473876389,-564.45286772,0.0003315,14]
[332713705,1721473876399,-500.0,0.0003315,14]
[332713706,1721473876408,-594.09,0.0003315,14]
[332713707,1721473876419,-520.16,0.0003315,14]
[332713708,1721473876429,-1211.15,0.0003315,14]
[332713709,1721473876439,-500.0,0.0003315,14]
[332713710,1721473876449,-500.0,0.0003315,14]
[332713711,1721473876459,-500.0,0.0003315,14]
[332713712,1721473876469,-500.0,0.0003315,14]
[332713713,1721473876479,-500.0,0.0003315,14]
[332713714,1721473876489,-500.0,0.0003315,14]
[332713715,1721473876499,-500.0,0.0003315,14]
[332713716,1721473876508,-500.0,0.0003315,14]
[332713717,1721473876518,-500.0,0.0003315,14]
[332713718,1721473876528,-410.40468676,0.0003315,14]
[332713719,1721473876537,-500.0,0.0003315,14]
[332713720,1721473876548,-500.0,0.0003315,14]
[332713721,1721473876557,-500.0,0.0003315,14]
[332713722,1721473876567,-500.0,0.0003315,14]
[332713723,1721473876577,-643.38,0.0003315,14]
[332713724,1721473876586,-288.41603773,0.0003315,14]
[332713725,1721473876596,-1101.45,0.0003315,14]
[332713726,1721473876606,-500.0,0.0003315,14]
[332713727,1721473876616,-626.45,0.0003315,14]
[332713728,1721473876626,-1299.14,0.0003315,14]
[332713729,1721473876637,-500.0,0.0003315,14]
[332713730,1721473876647,-500.0,0.0003315,14]
[332713731,1721473876656,-500.0,0.0003315,14]
[332713732,1721473876669,-500.0,0.0003315,14]
[332713733,1721473876679,-451.58957016,0.0003315,14]
[332713734,1721473876688,-500.0,0.0003315,14]
[332713735,1721473876698,-500.0,0.0003315,14]
[332713736,1721473876707,-524.77,0.0003315,14]
[332713737,1721473876717,-500.0,0.0003315,14]
[332713738,1721473876728,-554.72,0.0003315,14]
[332713739,1721473876738,-939.51,0.0003315,14]
[332713740,1721473876748,-2026.13,0.0003315,14]
[332713741,1721473876758,-546.06,0.0003315,14]
[332713742,1721473876768,-880.55,0.0003315,14]
[332713743,1721473876778,-500.0,0.0003315,14]
[332713744,1721473876788,-580.73,0.0003315,14]
[332713745,1721473876798,-462.18511508,0.0003315,14]
[332713746,1721473876808,-1165.94,0.0003315,14]
[332713747,1721473876818,-500.0,0.0003315,14]
[332713748,1721473876828,-500.0,0.0003315,14]
[332713749,1721473876838,-510.41,0.0003315,14]
[332713750,1721473876848,-885.11,0.0003315,14]
[332713751,1721473876858,-501.04636786,0.0003315,14]
[332713752,1721473876867,-500.0,0.0003315,14]
[332713753,1721473876877,-500.0,0.0003315,14]
[332713754,1721473876888,-500.0,0.0003315,14]
[332713755,1721473876898,-1002.1,0.0003315,14]
[332713756,1721473876908,-1945.47,0.0003315,2]
[332713757,1721473876918,-500.0,0.0003315,14]
[332713758,1721473876928,-710.86,0.0003315,14]
[332713759,1721473876938,-500.0,0.0003315,14]
[332713760,1721473876948,-893.65,0.0003315,14]
[332713761,1721473876959,-500.0,0.0003315,14]
[332713762,1721473876969,-500.0,0.0003315,14]
[332713763,1721473876979,-611.35,0.0003315,14]
[332713764,1721473876989,-1268.84,0.0003315,14]
[332713765,1721473876999,-500.0,0.0003315,14]
[332713766,1721473877009,-500.0,0.0003315,14]
[332713767,1721473877019,-500.0,0.0003315,14]
[332713768,1721473877030,-797.86,0.0003315,14]
[332713769,1721473877039,-500.0,0.0003315,14]
[332713770,1721473877050,-500.0,0.0003315,14]
[332713771,1721473877060,-500.0,0.0003315,14]
[332713772,1721473877070,-689.07,0.0003315,14]
[332713773,1721473877080,-1114.69,0.0003315,14]
[332713774,1721473877090,-500.0,0.0003315,14]
[332713775,1721473877100,-500.0,0.0003315,14]
[332713776,1721473877110,-678.8,0.0003315,14]
[332713777,1721473877120,-500.0,0.0003315,14]
[332713778,1721473877132,-500.0,0.0003315,14]
[332713779,1721473877142,-1280.72,0.0003315,14]
[332713780,1721473877152,-1166.55,0.0003315,14]
[332713781,1721473877162,-500.0,0.0003315,14]
[332713782,1721473877172,-500.0,0.0003315,14]
[332713783,1721473877182,-576.28,0.0003315,14]
[332713784,1721473877192,-500.0,0.0003315,14]
[332713785,1721473877202,-500.0,0.0003315,14]
[332713786,1721473877212,-625.0,0.0003315,14]
[332713787,1721473877223,-870.6,0.0003315,14]
[332713788,1721473877233,-1000.0,0.0003315,14]
[332713789,1721473877243,-500.0,0.0003315,14]
[332713790,1721473877253,-500.0,0.0003315,14]
[332713791,1721473877263,-500.0,0.0003315,14]
[332713792,1721473877273,-1483.13,0.0003315,14]
[332713793,1721473877283,-1651.69,0.0003315,14]
[332713794,1721473877293,-500.0,0.0003315,14]
[332713795,1721473877303,-500.0,0.0003315,14]
[332713796,1721473877314,-515.23,0.0003315,14]
[332713797,1721473877324,-522.51,0.0003315,14]
[332713798,1721473877334,-500.0,0.0003315,14]
[332713799,1721473877344,-500.0,0.0003315,14]
[332713800,1721473877354,-500.0,0.0003315,14]
[332713801,1721473877363,-1645.43,0.0003315,14]
[332713802,1721473877373,-500.0,0.0003315,14]
[332713803,1721473877383,-500.0,0.0003315,14]
[332713804,1721473877393,-1148.55,0.0003315,14]
[332713805,1721473877403,-1457.04,0.0003315,14]
[332713806,1721473877414,-220.93965742,0.0003315,14]
[332713807,1721473877424,-712.63,0.0003315,14]
[332713808,1721473877434,-673.81,0.0003315,14]
[332713809,1721473877444,-500.0,0.0003315,14]
[332713810,1721473877453,-500.0,0.0003315,14]
[332713811,1721473877464,-1082.56,0.0003315,14]
[332713812,1721473877475,-500.0,0.0003315,14]
[332713813,1721473877485,-533.63,0.0003315,14]
[332713814,1721473877496,-500.0,0.0003315,14]
[332713815,1721473877506,-500.0,0.0003315,14]
[332713816,1721473877516,-1008.36,0.0003315,14]
[332713817,1721473877526,-500.0,0.0003315,14]
[332713818,1721473877536,-500.0,0.0003315,14]
[332713819,1721473877546,-1547.65,0.0003315,14]
[332713820,1721473877556,-500.0,0.0003315,14]
[332713821,1721473877567,-500.0,0.0003315,14]
[332713822,1721473877577,-500.0,0.0003315,14]
[332713823,1721473877587,-500.0,0.0003315,14]
[332713824,1721473877596,-500.0,0.0003315,14]
[332713825,1721473877607,-872.26,0.0003315,14]
[332713826,1721473877617,-500.0,0.0003315,14]
[332713827,1721473877628,-500.0,0.0003315,14]
[332713828,1721473877639,-500.0,0.0003315,14]
[332713829,1721473877650,-500.0,0.0003315,14]
[332713830,1721473877661,-842.53,0.0003315,14]
[332713831,1721473877671,-500.0,0.0003315,14]
[332713832,1721473877681,-500.0,0.0003315,14]
[332713833,1721473877692,-2046.57,0.0003315,14]
[332713834,1721473877702,-500.0,0.0003315,14]
[332713835,1721473877713,-500.0,0.0003315,14]
[332713836,1721473877723,-580.79,0.0003315,14]
[332713837,1721473877733,-500.0,0.0003315,14]
[332713838,1721473877743,-992.0,0.0003315,14]
[332713839,1721473877754,-736.27,0.0003315,14]
[332713840,1721473877767,-500.0,0.0003315,14]
[332713841,1721473877778,-500.0,0.0003315,14]
[332713842,1721473877790,-1419.39,0.0003315,14]
[332713843,1721473877800,-409.89596729,0.0003315,14]
[332713844,1721473877810,-500.0,0.0003315,14]
[332713845,1721473877820,-500.0,0.0003315,14]
[332713846,1721473877831,-500.0,0.0003315,14]
[332713847,1721473877841,-1178.78,0.0003315,14]
[332713848,1721473877853,-838.03,0.0003315,14]
[332713849,1721473877863,-1192.93,0.0003315,14]
[332713850,1721473877873,-500.0,0.0003315,14]
[332713851,1721473877883,-500.0,0.0003315,14]
[332713852,1721473877893,-640.96,0.0003315,14]
[332713853,1721473877903,-500.0,0.0003315,14]
[332713854,1721473877913,-823.1,0.0003315,14]
[332713855,1721473877923,-500.0,0.0003315,14]
[332713856,1721473877933,-2025.09,0.0003315,14]
[332713857,1721473877943,-500.0,0.0003315,14]
[332713858,1721473877953,-500.0,0.0003315,14]
[332713859,1721473877963,-500.0,0.0003315,14]
[332713860,1721473877973,-689.8,0.0003315,14]
[332713861,1721473877983,-520.83,0.0003315,14]
[332713862,1721473877994,-500.0,0.0003315,14]
[332713863,1721473878004,-500.0,0.0003315,14]
[332713864,1721473878014,-991.34,0.0003315,14]
[332713865,1721473878024,-500.0,0.0003315,14]
[332713866,1721473878034,-587.95,0.0003315,14]
[332713867,1721473878044,-500.0,0.0003315,14]
[332713868,1721473878054,-500.0,0.0003315,14]
[332713869,1721473878064,-500.0,0.0003315,14]
[332713870,1721473878075,-650.56,0.0003315,14]
[332713871,1721473878084,-2486.61,0.0003315,14]
[332713872,1721473878095,-705.7,0.0003315,14]
[332713873,1721473878105,-639.9,0.0003315,14]
[332713874,1721473878115,-874.2,0.0003315,14]
[332713875,1721473878124,-500.0,0.0003315,14]
[332713876,1721473878135,-500.0,0.0003315,14]
[332713877,1721473878145,-500.0,0.0003315,14]
[332713878,1721473878155,-500.0,0.0003315,14]
[332713879,1721473878165,-500.0,0.0003315,14]
[332713880,1721473878176,-1205.99,0.0003315,14]
[332713881,1721473878186,-500.0,0.0003315,14]
[332713882,1721473878197,-500.0,0.0003315,14]
[332713883,1721473878207,-500.0,0.0003315,14]
[332713884,1721473878217,-500.0,0.0003315,14]
[332713885,1721473878227,-500.0,0.0003315,14]
[332713886,1721473878237,-500.0,0.0003315,14]
[332713887,1721473878247,-834.67,0.0003315,14]
[332713888,1721473878257,-1623.55,0.0003315,14]
[332713889,1721473878267,-500.0,0.0003315,14]
[332713890,1721473878277,-500.0,0.0003315,14]
[332713891,1721473878287,-530.46,0.0003315,14]
[332713892,1721473878296,-500.0,0.0003315,14]
[332713893,1721473878306,-865.41,0.0003315,14]
[332713894,1721473878316,-1109.5,0.0003315,14]
[332713895,1721473878326,-690.07,0.0003315,14]
[332713896,1721473878337,-2619.18,0.0003315,14]
[332713897,1721473878347,-500.0,0.0003315,14]
[332713898,1721473878598,-766.77,0.0003315,14]
[332713899,1721473878608,-500.0,0.0003315,14]
[332713900,1721473878618,-500.0,0.0003315,14]
[332713901,1721473878629,-500.0,0.0003315,14]
[332713902,1721473878639,-500.0,0.0003315,14]
[332713903,1721473878649,-1607.23,0.0003315,14]
[332713904,1721473878659,-1931.91,0.0003315,14]
[332713905,1721473878668,-500.0,0.0003315,14]
[332713906,1721473878678,-500.0,0.0003315,14]
[332713907,1721473878687,-500.0,0.0003315,14]
[332713908,1721473878697,-500.0,0.0003315,14]
[332713909,1721473878707,-500.0,0.0003315,14]
[332713910,1721473878716,-500.0,0.0003315,14]
[332713911,1721473878726,-222.20145189,0.0003315,14]
[332713912,1721473878734,-500.0,0.0003315,14]
[332713913,1721473878743,-500.0,0.0003315,14]
[332713914,1721473878752,-500.0,0.0003315,14]
[332713915,1721473878762,-957.27,0.0003315,14]
[332713916,1721473878772,-500.0,0.0003315,14]
[332713917,1721473878781,-514.93,0.0003315,14]
[332713918,1721473878791,-1547.04,0.0003315,14]
[332713919,1721473878801,-966.14,0.0003315,14]
[332713920,1721473878810,-500.0,0.0003315,14]
[332713921,1721473878820,-566.55,0.0003315,14]
[332713922,1721473878830,-500.0,0.0003315,14]
[332713923,1721473878839,-1356.28,0.0003315,14]
[332713924,1721473878849,-500.0,0.0003315,14]
[332713925,1721473878858,-6579.72,0.0003315,14]
[332713926,1721473878867,-1195.18,0.0003315,14]
[332713927,1721473878877,-500.0,0.0003315,14]
[332713928,1721473878887,-500.0,0.0003315,14]
[332713929,1721473878897,-500.0,0.0003315,14]
[332713930,1721473878907,-500.0,0.0003315,14]
[332713931,1721473878916,-500.0,0.0003315,14]
[332713932,1721473878926,-1037.88,0.0003315,14]
[332713933,1721473878935,-500.0,0.0003315,14]
[332713934,1721473878945,-500.0,0.0003315,14]
[332713935,1721473878954,-559.7,0.0003315,14]
[332713936,1721473878964,-17223.67,0.0003315,14]
[332713937,1721473878974,-1115.76,0.0003315,14]
[332713938,1721473878984,-500.0,0.0003315,14]
[332713939,1721473878993,-714.83,0.0003315,14]
[332713940,1721473879003,-500.0,0.0003315,14]
[332713941,1721473879012,-512.04,0.0003315,14]
[332713942,1721473879022,-500.0,0.0003315,14]
[332713943,1721473879032,-500.0,0.0003315,14]
[332713944,1721473879041,-1300.89,0.0003315,14]
[332713945,1721473879051,-500.0,0.0003315,14]
[332713946,1721473879060,-500.0,0.0003315,14]
[332713947,1721473879069,-500.0,0.0003315,14]
[332713948,1721473879079,-1753.8,0.0003315,14]
[332713949,1721473879088,-500.0,0.0003315,14]
[332713950,1721473879097,-500.0,0.0003315,14]
[332713951,1721473879107,-500.0,0.0003315,14]
[332713952,1721473879116,-1374.48,0.0003315,7]
[332713953,1721473879126,-2771.16,0.0003315,14]
[332713954,1721473879136,-500.0,0.0003315,14]
[332713955,1721473879145,-1274.75,0.0003315,14]
[332713956,1721473879155,-2453.79,0.0003315,14]
[332713957,1721473879164,-764.89,0.0003315,14]
[332713958,1721473879174,-727.24,0.0003315,14]
[332713959,1721473879183,-500.0,0.0003315,14]
[332713960,1721473879192,-500.0,0.0003315,14]
[332713961,1721473879201,-1365.27,0.0003315,14]
[332713962,1721473879210,-1132.11,0.0003315,14]
[332713963,1721473879219,-1501.34,0.0003315,14]
[332713964,1721473879229,-1778.34,0.0003315,14]
[332713965,1721473879238,-500.0,0.0003315,14]
[332713966,1721473879247,-500.0,0.0003315,14]
[332713967,1721473879257,-500.0,0.0003315,14]
[332713968,1721473879266,-500.0,0.0003315,14]
[332713969,1721473879275,-1596.48,0.0003315,14]
[332713970,1721473879285,-1124.54,0.0003315,14]
[332713971,1721473879295,-1241.68,0.0003315,14]
[332713972,1721473879304,-926.17,0.0003315,14]
[332713973,1721473879314,-583.3,0.0003315,14]
[332713974,1721473879323,-1705.25,0.0003315,14]
[332713975,1721473879332,-924.05,0.0003315,14]
[332713976,1721473879342,-603.25034054,0.0003315,14]
[332713977,1721473879352,-500.0,0.0003315,14]
[332713978,1721473879361,-2639.29,0.0003315,14]
[332713979,1721473879370,-3033.57,0.0003315,14]
[332713980,1721473879380,-2311.01,0.0003315,14]
[332713981,1721473879389,-1326.69,0.0003315,14]
[332713982,1721473879399,-3842.84,0.0003315,14]
[332713983,1721473879409,-500.0,0.0003315,14]
[332713984,1721473879419,-271.87318817,0.0003315,14]
[332713985,1721473879429,-500.0,0.0003315,14]
[332713986,1721473879438,-500.0,0.0003315,14]
[332713987,1721473879448,-1305.69,0.0003315,14]
[332713988,1721473879458,-1643.82,0.0003315,14]
[332713989,1721473879468,-649.51,0.0003315,14]
[332713990,1721473879478,-500.0,0.0003315,14]
[332713991,1721473879487,-2146.27,0.0003315,14]
[332713992,1721473879497,-791.17,0.0003315,14]
[332713993,1721473879507,-500.0,0.0003315,14]
[332713994,1721473879516,-823.93,0.0003315,14]
[332713995,1721473879526,-694.65,0.0003315,14]
[332713996,1721473879536,-3853.01,0.0003315,14]
[332713997,1721473879545,-500.0,0.0003315,14]
[332713998,1721473879559,-500.0,0.0003315,14]
[332713999,1721473879568,-885.54,0.0003315,14]
[332714000,1721473879578,-500.0,0.0003315,14]
[332714001,1721473879589,-1165.93,0.0003315,14]
[332714002,1721473879598,-1240.13,0.0003315,14]
[332714003,1721473879608,-734.23,0.0003315,14]
[332714004,1721473879618,-500.0,0.0003315,14]
[332714005,1721473879627,-500.0,0.0003315,14]
[332714006,1721473879638,-500.0,0.0003315,14]
[332714007,1721473879647,-958.73,0.0003315,14]
[332714008,1721473879658,-500.0,0.0003315,14]
[332714009,1721473879668,-1274.63,0.0003315,14]
[332714010,1721473879677,-2805.87,0.0003315,14]
[332714011,1721473879687,-500.0,0.0003315,14]
[332714012,1721473879696,-512.54,0.0003315,14]
[332714013,1721473879706,-1842.33,0.0003315,14]
[332714014,1721473879716,-500.0,0.0003315,14]
[332714015,1721473879725,-500.0,0.0003315,14]
[332714016,1721473879735,-4449.71,0.0003315,14]
[332714017,1721473879745,-500.0,0.0003315,14]
[332714018,1721473879754,-698.3,0.0003315,14]
[332714019,1721473879766,-500.0,0.0003315,14]
[332714020,1721473879776,-727.9,0.0003315,14]
[332714021,1721473879785,-1861.2,0.0003315,14]
[332714022,1721473879795,-500.0,0.0003315,14]
[332714023,1721473879804,-500.0,0.0003315,14]
[332714024,1721473879814,-500.0,0.0003315,14]
[332714025,1721473879824,-1979.67,0.0003315,14]
[332714026,1721473879833,-1420.89,0.0003315,14]
[332714027,1721473879845,-2783.18,0.0003315,14]
[332714028,1721473879855,-525.5,0.0003315,14]
[332714029,1721473879864,-500.0,0.0003315,14]
[332714030,1721473879874,-3423.76,0.0003315,14]
[332714031,1721473879884,-3739.53,0.0003315,14]
[332714032,1721473879894,-954.2,0.0003315,14]
[332714033,1721473879903,-500.0,0.0003315,14]
[332714034,1721473879912,-500.0,0.0003315,14]
[332714035,1721473879924,-562.22,0.0003315,14]
[332714036,1721473879935,-4221.65,0.0003315,14]
[332714037,1721473879945,-1454.72,0.0003315,14]
[332714038,1721473879955,-500.0,0.0003315,14]
[332714039,1721473879964,-500.0,0.0003315,14]
[332714040,1721473879973,-500.0,0.0003315,14]
[332714041,1721473879983,-1866.63,0.0003315,14]
[332714042,1721473879992,-1847.67,0.0003315,14]
[332714043,1721473880002,-500.0,0.0003315,14]
[332714044,1721473880011,-717.61,0.0003315,14]
[332714045,1721473880021,-500.0,0.0003315,14]
[332714046,1721473880030,-500.0,0.0003315,14]
[332714047,1721473880039,-1568.4,0.0003315,14]
[332714048,1721473880049,-2086.21,0.0003315,14]
[332714049,1721473880058,-2361.41,0.0003315,14]
[332714050,1721473880068,-533.76,0.0003315,14]
[332714051,1721473880077,-531.19,0.0003315,14]
[332714052,1721473880087,-500.0,0.0003315,14]
[332714053,1721473880096,-500.0,0.0003315,14]
[332714054,1721473880106,-7679.89,0.0003315,14]
[332714055,1721473880115,-500.0,0.0003315,14]
[332714056,1721473880125,-5599.81,0.0003315,14]
[332714057,1721473880135,-678.77,0.0003315,14]
[332714058,1721473880144,-2741.18,0.0003315,14]
[332714059,1721473880154,-500.0,0.0003315,14]
[332714060,1721473880163,-150.0,0.0003315,14]
[332714061,1721473880172,-500.0,0.0003315,14]
[332714062,1721473880182,-1759.46,0.0003315,14]
[332714063,1721473880191,-3706.51,0.0003315,14]
[332714064,1721473880200,-3111.41,0.0003315,14]
[332714065,1721473880209,-500.0,0.0003315,14]
[332714066,1721473880218,-500.0,0.0003315,14]
[332714067,1721473880227,-500.0,0.0003315,14]
[332714068,1721473880236,-500.0,0.0003315,14]
[332714069,1721473880246,-500.0,0.0003315,14]
[332714070,1721473880255,-1042.97,0.0003315,14]
[332714071,1721473880264,-2100.36,0.0003315,14]
[332714072,1721473880273,-500.0,0.0003315,14]
[332714073,1721473880282,-500.0,0.0003315,14]
[332714074,1721473880291,-500.0,0.0003315,14]
[332714075,1721473880301,-500.0,0.0003315,14]
[332714076,1721473880310,-521.11,0.0003315,14]
[332714077,1721473880320,-500.0,0.0003315,14]
[332714078,1721473880329,-1119.58,0.0003315,14]
[332714079,1721473880338,-1054.38,0.0003315,14]
[332714080,1721473880347,-500.0,0.0003315,14]
[332714081,1721473880356,-2778.17,0.0003315,14]
[332714082,1721473880366,-2896.14,0.0003315,14]
[332714083,1721473880375,-1580.83,0.0003315,14]
[332714084,1721473880384,-500.0,0.0003315,14]
[332714085,1721473880394,-500.0,0.0003315,14]
[332714086,1721473880403,-500.0,0.0003315,14]
[332714087,1721473880413,-531.09,0.0003315,14]
[332714088,1721473880422,-5371.08,0.0003315,14]
[332714089,1721473880431,-1540.68,0.0003315,14]
[332714090,1721473880441,-500.0,0.0003315,14]
[332714091,1721473880450,-500.0,0.0003315,14]
[332714092,1721473880460,-2005.82,0.0003315,14]
[332714093,1721473880469,-862.76,0.0003315,14]
[332714094,1721473880479,-840.3,0.0003315,14]
[332714095,1721473880489,-562.41,0.0003315,14]
[332714096,1721473880498,-500.0,0.0003315,14]
[332714097,1721473880507,-1249.2,0.0003315,14]
[332714098,1721473880517,-634.33,0.0003315,14]
[332714099,1721473880526,-500.0,0.0003315,14]
[332714100,1721473880535,-500.0,0.0003315,14]
[332714101,1721473880544,-500.0,0.0003315,14]
[332714102,1721473880554,-1570.16,0.0003315,14]
[332714103,1721473880563,-500.0,0.0003315,14]
[332714104,1721473880572,-500.0,0.0003315,14]
[332714105,1721473880581,-1581.58,0.0003315,14]
[332714106,1721473880591,-719.82,0.0003315,14]
[332714107,1721473880600,-500.0,0.0003315,14]
[332714108,1721473880609,-500.0,0.0003315,14]
[332714109,1721473880619,-500.0,0.0003315,14]
[332714110,1721473880628,-500.0,0.0003315,14]
[332714111,1721473880638,-1146.91,0.0003315,14]
[332714112,1721473880648,-3329.02,0.0003315,14]
[332714113,1721473880658,-500.0,0.0003315,14]
[332714114,1721473880667,-853.86,0.0003315,14]
[332714115,1721473880677,-500.0,0.0003315,14]
[332714116,1721473880687,-2264.07,0.0003315,14]
[332714117,1721473880696,-2219.13,0.0003315,14]
[332714118,1721473880706,-500.0,0.0003315,14]
[332714119,1721473880715,-1902.93,0.0003315,14]
[332714120,1721473880725,-500.0,0.0003315,14]
[332714121,1721473880735,-1120.96,0.0003315,14]
[332714122,1721473880745,-500.0,0.0003315,14]
[332714123,1721473880754,-868.34,0.0003315,14]
[332714124,1721473880764,-705.07,0.0003315,14]
[332714125,1721473880774,-500.0,0.0003315,14]
[332714126,1721473880783,-3016.63,0.0003315,14]
[332714127,1721473880793,-500.0,0.0003315,14]
[332714128,1721473880803,-500.0,0.0003315,14]
[332714129,1721473880813,-500.0,0.0003315,14]
[332714130,1721473880823,-500.0,0.0003315,14]
[332714131,1721473880832,-500.0,0.0003315,14]
[332714132,1721473880842,-667.93,0.0003315,14]
[332714133,1721473880851,-1768.29,0.0003315,14]
[332714134,1721473880936,-1526.65,0.0003315,14]
[332714135,1721473880946,-500.0,0.0003315,14]
[332714136,1721473880956,-500.0,0.0003315,14]
[332714137,1721473880965,-286.64282989,0.0003315,14]
[332714138,1721473880975,-2466.45,0.0003315,14]
[332714139,1721473880985,-500.0,0.0003315,14]
[332714140,1721473880994,-534.02152493,0.0003315,14]
[332714141,1721473881004,-500.0,0.0003315,14]
[332714142,1721473881013,-500.0,0.0003315,14]
[332714143,1721473881022,-500.0,0.0003315,14]
[332714144,1721473881031,-1656.41,0.0003315,14]
[332714145,1721473881040,-500.0,0.0003315,14]
[332714146,1721473881049,-500.0,0.0003315,14]
[332714147,1721473881058,-500.0,0.0003315,14]
[332714148,1721473881067,-1167.22,0.0003315,14]
[332714149,1721473881077,-2366.03,0.0003315,14]
[332714150,1721473881087,-500.0,0.0003315,14]
[332714151,1721473881097,-500.0,0.0003315,14]
[332714152,1721473881107,-500.0,0.0003315,14]
[332714153,1721473881116,-578.52,0.0003315,14]
[332714154,1721473881125,-1218.57,0.0003315,14]
[332714155,1721473881135,-500.0,0.0003315,14]
[332714156,1721473881144,-1550.98,0.0003315,14]
[332714157,1721473881153,-1528.37,0.0003315,14]
[332714158,1721473881162,-1548.59,0.0003315,14]
[332714159,1721473881171,-500.0,0.0003315,14]
[332714160,1721473881181,-500.0,0.0003315,14]
[332714161,1721473881190,-3673.09,0.0003315,14]
[332714162,1721473881199,-500.0,0.0003315,14]
[332714163,1721473881208,-2277.43,0.0003315,14]
[332714164,1721473881218,-500.0,0.0003315,14]
[332714165,1721473881227,-652.12,0.0003315,14]
[332714166,1721473881237,-599.55,0.0003315,14]
[332714167,1721473881247,-1666.71,0.0003315,14]
[332714168,1721473881257,-6734.78,0.0003315,14]
[332714169,1721473881267,-500.0,0.0003315,14]
[332714170,1721473881277,-500.0,0.0003315,14]
[332714171,1721473881287,-2116.33,0.0003315,14]
[332714172,1721473881297,-1260.65,0.0003315,14]
[332714173,1721473881307,-500.0,0.0003315,14]
[332714174,1721473881316,-500.0,0.0003315,14]
[332714175,1721473881326,-500.0,0.0003315,14]
[332714176,1721473881335,-2036.66,0.0003315,14]